{"text_format":"1","workbook":"xlsx","n_sheets":2,"sheets":["Main","Button Config"],"not_rendered":{"charts":0,"images":0,"macros":1,"external_links":0,"defined_names":0,"comments":0,"pivot_tables":0},"unopened":[],"bounds":{"document_bytes":16777216,"sheet_cells":100000,"rows_first":2000,"rows_last":500,"rows_between":2000,"halvings":0,"cell_chars":16384,"cell_head_chars":4096},"cells_cut":0,"cells_raw":0,"read":"whole","date_system":"1900"}

{"sheet":"Main","index":0,"n_rows":0,"n_cols":0,"rows_kept":0,"cut":false,"hidden":false,"merged":[]}

{"sheet":"Button Config","index":1,"n_rows":55,"n_cols":4,"rows_kept":55,"cut":false,"hidden":false,"merged":[]}
["row","col","name","caption"]
[1,1,"btnClearAll","Clear"]
[1,{"$f":"MOD(B2,3)+1","v":2}]
[1,{"$f":"MOD(B3,3)+1","v":3}]
[{"$f":"A2+1","v":2},1,"btnDrawHeaderTall","Header T"]
[{"$f":"A3+1","v":2},2,"btnDrawHeaderMid","Header M"]
[2,3,"btnDrawHeaderShort","Header S"]
[3,1,"btnDrawFooterTall","Footer S"]
[3,2,"btnDrawFooterMid","Footer M"]
[3,3,"btnDrawFooterShort","Footer S"]
[4,1,"btnDrawNavigation","Navigation"]
[4,2,"btnDrawTabs","Tabs"]
[4,3,"btnSearchBox","Search"]
[5,1,"btnContentFullTall","Content T"]
[5,2,"btnContentFullMid","Content M"]
[5,3,"btnContentFullShort","Content S"]
[6,1,"btnContentHalfTall","Cols(1:1) T"]
[6,2,"btnContentHalfMid","Cols(1:1) M"]
[6,3,"btnContentHalfShort","Cols(1:1) S"]
[7,1,"btnContent1To3Tall","Cols(1:3) T"]
[7,2,"btnContent1To3Mid","Cols(1:3) M"]
[7,3,"btnContent1To3Short","Cols(1:3) S"]
[8,1,"btnContent3To1Tall","Cols(3:1) T"]
[8,2,"btnContent3To1Mid","Cols(3:1) M"]
[8,3,"btnContent3To1Short","Cols(3:1) S"]
[9,1,"btnContentOne3rdTall","Cols(1:1:1) T"]
[9,2,"btnContentOne3rdMid","Cols(1:1:1) M"]
[9,3,"btnContentOne3rdShort","Cols(1:1:1) S"]
[10,1,"btnContent1To2To1Tall","Cols(1:2:1) T"]
[10,2,"btnContent1To2To1Mid","Cols(1:2:1) M"]
[10,3,"btnContent1To2To1Short","Cols(1:2:1) S"]
[11,1,"btnContentQuarterTall","Cols(1:1:1:1) T"]
[11,2,"btnContentQuarterMid","Cols(1:1:1:1) M"]
[11,3,"btnContentQuarterShort","Cols(1:1:1:1) S"]
[12,1,"btnDrawImageFull","Image (Full)"]
[12,2,"btnDrawImageBig","Image (2/3)"]
[12,3,"btnDrawImageHalf","Image (1/2)"]
[13,1,"btnDrawImageMid","Image Mid"]
[13,2,"btnDrawImageSmall","Image Small"]
[13,3,"btnDrawImageTiny","Image Tiny"]
[14,1,"btnDrawButtonBig","Button Big"]
[14,2,"btnDrawButtonMid","Button Mid"]
[14,3,"btnDrawButtonSmall","Button Small"]
[15,1,"btnDrawHeading1","Heading 1"]
[15,2,"btnDrawHeading2","Heading 2"]
[15,3,"btnDrawHeading3","Heading 3"]
[16,1,"btnDrawHeading1Fill","Heading 1 F"]
[16,2,"btnDrawHeading2Fill","Heading 2 F"]
[16,3,"btnDrawHeading3Fill","Heading 3 F"]
[17,1,"btnTextArea1","Text 1"]
[17,2,"btnTextArea2","Text 2"]
[17,3,"btnTextArea3","Text 3"]
[18,{"$f":"MOD(B52,3)+1","v":1},"btnTextArea1Fill","Text 1 F"]
[18,2,"btnTextArea2Fill","Text 2 F"]
[18,3,"btnTextArea3Fill","Text 3 F"]